[Event "Superbet Blitz Poland 2022"]
[Site "Warsaw"]
[Date "2022.05.22"]
[Round "9.5"]
[White "Korobov, Anton"]
[Black "Gavrilescu, David"]
[Result "0-1"]
[ECO "C11"]
[WhiteElo "2671"]
[BlackElo "2518"]
[Annotator "TA"]
[PlyCount "92"]
[EventDate "2022.05.22"]
[EventType "tourn"]
[EventCountry "POL"]
[SourceTitle "playchess.com"]
[Source "ChessBase"]
[SourceQuality "1"]
[TimeControl "300+2"]

{[%evp 20,92,8,0,0,21,31,30,18,16,23,20,31,25,39,35,20,21,22,0,0,-9,-9,-9,-9,-10,0,0,0,0,0,0,0,0,0,0,0,0,0,0,0,0,4,0,0,0,0,0,0,0,0,0,8,8,8,8,49,54,49,54,62,47,66,36,316,314,299,300,299,285,170,57,75,-29977,-29978]} 1. e4 {[%emt 0:00:02][%cal Be2e4,Be4e5][%mdl 32]} e6 {[%emt 0:00:01]} 2. d4 {[%emt 0:00:05]} d5 {[%emt 0:00:01]} 3. Nc3 {[%emt 0:00:02]} Nf6 {[%emt 0:00:01]} 4. e5 {[%emt 0:00:04]} Nfd7 {[%emt 0:00:02]} 5. f4 {[%emt 0:00:01]} c5 {[%emt 0:00:01]} 6. Nf3 {[%emt 0:00:01]} Nc6 {[%emt 0:00:01]} 7. Be3 {[%emt 0:00:02]} cxd4 {[%emt 0:00:01]} 8. Nxd4 {[%emt 0:00:01]} Qb6 {[%emt 0:00:02]} 9. Qd2 {[%emt 0:00:20]} Qxb2 {[%emt 0:00:02]} 10. Rb1 {[%emt 0:00:09]} Qa3 {[%emt 0:00:01]} 11. Bb5 {[%emt 0:00:02] [#] Hoping for Rb3.} Nxd4 {[%emt 0:00:02] C11: French: Classical System: 4 e5 and 4 Bg5 dxe4.} 12. Bxd4 {[%emt 0:00:04]} ({Much weaker is} 12. Qxd4 a6 13. Bxd7+ Bxd7 14. Rxb7 Rc8 $17) 12... a6 {[%emt 0:00:01]} (12... Bb4 {looks sharper.} 13. Rb3 Qa5 14. O-O a6) 13. Bxd7+ {[%emt 0:00:04]} Bxd7 {[%emt 0:00:01] White has an edge.} 14. Rb3 {[%emt 0:00:26]} Qe7 {[%emt 0:00:02]} 15. Rxb7 {[%emt 0:00:07]} Qh4+ {[%emt 0:00:01]} 16. Qf2 {[%emt 0:00:20]} Qxf2+ {[%emt 0:00:02]} 17. Kxf2 {[%emt 0:00:01]} Be7 {[%emt 0:00:02]} 18. Rhb1 {[%emt 0:00:20]} Bd8 {[%emt 0:00:01]} 19. Ke3 {[%emt 0:00:30]} Bc6 {[%emt 0:00:40] [#]} 20. Ra7 $146 {[%emt 0:00:44]} ({Predecessor:} 20. Rb8 O-O 21. Rxa8 Bxa8 22. Bc5 Re8 23. Ne2 Ba5 24. Rb3 Rc8 25. Bb6 Be1 26. g3 {½-½ (41) Perez Ponsa,F (2561)-Villanueva,M (2450) Villa Martelli 2021}) 20... Rxa7 {[%emt 0:00:14]} 21. Bxa7 {[%emt 0:00:01]} Kd7 {[%emt 0:00:31]} 22. Ne2 {[%emt 0:00:16]} Be7 {[%emt 0:00:09]} 23. Nd4 {[%emt 0:00:01]} Ra8 {[%emt 0:00:03]} 24. Nxc6 {[%emt 0:00:18]} Kxc6 $11 {[%emt 0:00:02][%mdl 4096] Endgame KRB-KRB} 25. Bd4 {[%emt 0:00:03]} Bd8 {[%emt 0:00:42]} 26. g4 {[%emt 0:00:02]} Rc8 {[%emt 0:00:14]} 27. f5 {[%emt 0:00:16]} g6 {[%emt 0:00:52]} 28. fxe6 {[%emt 0:00:09]} fxe6 {[%emt 0:00:01]} 29. Rf1 {[%emt 0:00:07]} Rb8 {[%emt 0:00:42]} 30. Kd3 {[%emt 0:00:15]} Rb4 {[%emt 0:00:34]} 31. Rf7 {[%emt 0:00:09]} Ra4 {[%emt 0:00:19]} 32. Rxh7 {[%emt 0:00:07]} g5 {[%emt 0:00:02] Prevents h4.} 33. Rh6 {[%emt 0:00:32]} Kd7 {[%emt 0:00:01]} 34. Rh7+ {[%emt 0:00:07]} Kc6 {[%emt 0:00:01]} 35. Rg7 {[%emt 0:00:08]} Rxa2 {[%emt 0:00:06]} 36. Be3 {[%emt 0:00:02]} Ra3+ {[%emt 0:00:04]} 37. c3 {[%emt 0:00:01]} Ba5 {[%emt 0:00:08]} 38. Bd2 {[%emt 0:00:02]} ({Of course not} 38. Bxg5 Bxc3 39. Bc1 Bb2+ 40. Kc2 Bxc1 41. Kxc1 d4 $15) 38... d4 {[%emt 0:00:14]} 39. Kxd4 {[%emt 0:00:03]} ({Not} 39. Bxg5 Kd5 40. Ra7 Bxc3 $17) 39... Ra4+ {[%emt 0:00:01]} 40. Kd3 {[%emt 0:00:03]} Rxg4 {[%emt 0:00:01]} 41. Bxg5 {[%emt 0:00:07] Strongly threatening Bf6.} Kd5 $2 {[%emt 0:00:02][%mdl 8192]} ({Better is} 41... Rg2 $14) 42. Bf6 $18 {[%emt 0:00:02]} Rf4 {[%emt 0:00:07]} 43. Rd7+ {[%emt 0:00:01]} Kc5 {[%emt 0:00:01]} 44. h4 {[%emt 0:00:04]} Rf3+ {[%emt 0:00:01]} 45. Ke2 {[%emt 0:00:01]} (45. Ke4 $18 Rxc3 46. Re7 Rc4+ 47. Kf3) 45... Rxc3 {[%emt 0:00:02]} 46. Rc7+ $2 {[%emt 0:00:02][%mdl 8192] [#]} Bxc7 {[%emt 0:00:01] Quite a comeback for Black.  Weighted Error Value: White=0.28 (precise) /Black=0.19 (very precise)} 0-1

[Event "Superbet Blitz Poland 2022"]
[Site "Warsaw"]
[Date "2022.05.23"]
[Round "10.1"]
[White "Aronian, Levon"]
[Black "Gavrilescu, David"]
[Result "1/2-1/2"]
[ECO "B13"]
[WhiteElo "2765"]
[BlackElo "2518"]
[Annotator "TA"]
[PlyCount "84"]
[EventDate "2022.05.22"]
[EventType "tourn"]
[EventCountry "POL"]
[SourceTitle "playchess.com"]
[Source "ChessBase"]
[SourceQuality "1"]
[TimeControl "300+2"]

{[%evp 9,84,1,5,2,2,0,0,18,75,75,171,164,345,132,135,123,129,113,154,127,121,123,117,116,115,122,111,108,103,65,204,73,197,189,193,200,332,331,324,303,675,648,1017,137,152,159,137,53,141,0,0,0,0,0,0,0,0,-429,-420,-420,-420,-429,-429,-408,-358,-406,0,0,0,0,0,0,0,-8,0,0,0]} 1. d4 {[%emt 0:00:02]} d5 {[%emt 0:00:02]} 2. Bf4 {[%emt 0:00:02]} c5 {[%emt 0:00:01]} 3. e3 {[%emt 0:00:01]} cxd4 {[%emt 0:00:03]} 4. exd4 {[%emt 0:00:02]} Nc6 {[%emt 0:00:01]} 5. Nf3 {[%emt 0:00:08]} Bf5 {[%emt 0:00:13]} 6. c4 {[%emt 0:00:39] [#] And now cxd5 would win. B13: Caro-Kann: Exchange Variation and Panov-Botvinnik Attack.} e6 {[%emt 0:01:10]} 7. c5 {[%emt 0:00:01] [#]} Bg4 $146 {[%emt 0:00:15]} ({Predecessor:} 7... Nge7 8. Qb3 Qd7 9. h4 Ng6 10. Bg3 h5 11. Bb5 f6 12. O-O Be7 13. Bd3 Be4 {½-½ (24) Novikov,E (1842)-Vysotskiy,E (1869) LSS email 2018}) 8. Nbd2 {[%emt 0:00:31]} g6 {[%emt 0:00:14]} (8... g5 $11 {keeps the balance.} 9. Be3 Bg7) 9. Qb3 $16 {[%emt 0:00:14]} Bxf3 {[%emt 0:00:33]} (9... Qc8 $16) 10. Qxb7 $18 {[%emt 0:00:22]} (10. Nxf3 $6 Qa5+ 11. Kd1 O-O-O $14) (10. gxf3 Qd7 11. Qc3 Bg7 $15) 10... Nxd4 {[%emt 0:00:19]} (10... Nge7 {keeps fighting.}) 11. Bb5+ $2 {[%emt 0:00:24]} (11. Nxf3 $18 Bxc5 12. Nxd4 Bxd4 13. Qb4) 11... Nxb5 $16 {[%emt 0:00:07]} 12. Qxb5+ {[%emt 0:00:01]} (12. Nxf3 f6 $14) 12... Qd7 {[%emt 0:00:31]} 13. c6 {[%emt 0:00:02][%cal Bc5c6,Bc6c7][%mdl 32]} Qc8 {[%emt 0:00:01] Hoping for ...a6.} 14. c7+ {[%emt 0:00:38]} (14. gxf3 $6 f6 $14) 14... Qd7 {[%emt 0:00:02]} 15. Qb8+ {[%emt 0:00:01]} Qc8 {[%emt 0:00:01]} 16. Nxf3 {[%emt 0:00:04]} Ne7 {[%emt 0:00:13]} 17. O-O {[%emt 0:01:23]} f6 {[%emt 0:00:01]} 18. Qb5+ {[%emt 0:00:26]} Qd7 {[%emt 0:00:03]} 19. Qa6 {[%emt 0:00:01] 0x0.00226ac032a6dp-1022s more active pieces. The black rooks are badly placed.} g5 {[%emt 0:00:28]} (19... Bg7 $14) 20. Bg3 {[%emt 0:00:02]} (20. Bxg5 $18 {is more deadly.} Bg7 21. Be3) 20... Nf5 {[%emt 0:00:10]} (20... Bg7 $16 {might work better.}) 21. Rac1 {[%emt 0:00:03]} Rc8 {[%emt 0:00:01]} 22. Rc6 {[%emt 0:00:08]} (22. Qxa7 Nxg3 23. fxg3 (23. hxg3 Bd6 $14) 23... Bd6 $16) 22... Kf7 {[%emt 0:00:33]} (22... Be7 {is a better defense.}) 23. Re1 $18 {[%emt 0:00:00]} Nxg3 {[%emt 0:00:09]} 24. hxg3 {[%emt 0:00:13]} (24. fxg3 Rxc7 25. Rcxe6 Qd8 $16) 24... Bg7 $2 {[%emt 0:00:17]} (24... Rxc7 25. Rcxe6 Qd8) 25. Rexe6 {[%emt 0:00:07]} Rxc7 {[%emt 0:00:02]} 26. Nd4 {[%emt 0:00:08]} (26. Red6 $18) 26... Rxc6 $16 {[%emt 0:00:03]} 27. Rxc6 {[%emt 0:00:01] aiming for Ne6.} ({Don't do} 27. Qxc6 $6 Qxc6 28. Rxc6 Re8 $14) 27... Re8 {[%emt 0:00:03] Prevents Ne6.} 28. Qd3 {[%emt 0:00:08]} (28. Kh2 $16) 28... Re4 {[%emt 0:00:02] [#]} (28... Re1+ $14 29. Kh2 Qg4 30. Rc7+ (30. Qxh7 Qxd4 31. Rc7+ Re7 $14) 30... Kg8) 29. Ra6 {[%emt 0:00:02]} ({White should play} 29. Qc3 $1 $16 {Rc7 is the strong threat.} Kg6 30. Rc7) 29... Re1+ $11 {[%emt 0:00:05]} 30. Kh2 {[%emt 0:00:01]} Qg4 $1 {[%emt 0:00:02][%cal Rg4h5]} 31. Rxa7+ {[%emt 0:00:01]} Kg8 {[%emt 0:00:01][%cal Rg4h5]} 32. Ra8+ {[%emt 0:00:04]} Bf8 {[%emt 0:00:02][%cal Rg4h5]} 33. Qf5 $2 {[%emt 0:00:02][%mdl 8192]} Qxd4 $19 {[%emt 0:00:02]} 34. Qc8 {[%emt 0:00:01][%csl Ga8][%cal Rc8f8]} Qb4 {[%emt 0:00:02]} 35. Qd7 {[%emt 0:00:03]} Qe7 {[%emt 0:00:03]} ({Avoid the trap} 35... Qe4 $2 36. Qd8 Qe7 37. Qxd5+ Kg7 38. Qf5 $19) 36. Qxd5+ {[%emt 0:00:08]} Qf7 {[%emt 0:00:01]} 37. Qf3 {[%emt 0:00:00]} Re8 $2 {[%emt 0:00:03]} (37... Kg7 $19 {Strongly threatening ...Qg6.} 38. Rd8 Qxa2 39. Rd7+ Be7) 38. Rxe8 $11 {[%emt 0:00:00] The position is equal.} Qxe8 {[%emt 0:00:01]} 39. Qxf6 {[%emt 0:00:00]} Qh5+ {[%emt 0:00:01]} 40. Kg1 {[%emt 0:00:00]} Qd1+ 41. Kh2 Qh5+ {[%emt 0:00:03]} 42. Kg1 {[%emt 0:00:00]} Qd1+ {[%emt 0:00:01] Quite a comeback for White.  Weighted Error Value: White=0.64/Black=0.53} 1/2-1/2

[Event "Superbet Blitz Poland 2022"]
[Site "Warsaw"]
[Date "2022.05.23"]
[Round "10.2"]
[White "Korobov, Anton"]
[Black "Shevchenko, Kirill"]
[Result "1-0"]
[ECO "A77"]
[WhiteElo "2671"]
[BlackElo "2644"]
[Annotator "TA"]
[PlyCount "117"]
[EventDate "2022.05.22"]
[EventType "tourn"]
[EventCountry "POL"]
[SourceTitle "playchess.com"]
[Source "ChessBase"]
[SourceQuality "1"]
[TimeControl "300+2"]

{[%evp 20,117,48,45,58,15,16,29,17,20,25,23,28,28,32,20,21,8,22,14,11,20,10,0,10,0,5,5,12,0,0,0,0,0,0,0,0,0,21,13,22,25,84,72,88,93,83,45,49,0,185,181,183,138,191,182,199,134,639,634,644,621,789,762,1012,1015,1231,1206,1060,662,1017,1059,987,945,1183,892,2252,2252,2175,1920,12835,12835,12837,12837,12841,12842,12843,12842,12844,12842,12845,12841,12840,0,12845,12845,29992,29993,29993,29994]} 1. d4 {[%emt 0:00:02]} Nf6 {[%emt 0:00:01]} 2. c4 {[%emt 0:00:01]} c5 {[%emt 0:00:02]} 3. d5 {[%emt 0:00:02]} e6 {[%emt 0:00:01]} 4. Nc3 {[%emt 0:00:03]} exd5 {[%emt 0:00:01]} 5. cxd5 {[%emt 0:00:02]} d6 {[%emt 0:00:01]} 6. Nf3 {[%emt 0:00:02][%cal Bg1f3,Bf3d2,Bd2c4][%mdl 32]} g6 {[%emt 0:00:02]} 7. Nd2 {[%emt 0:00:02]} Bg7 {[%emt 0:00:02]} 8. e4 {[%emt 0:00:02]} O-O {[%emt 0:00:02]} 9. Be2 {[%emt 0:00:02]} Re8 {[%emt 0:00:07][%cal Bf8e8,Be8e4,Be4d4][%mdl 32]} 10. O-O {[%emt 0:00:04]} Nbd7 {[%emt 0:00:02]} 11. h3 {[%emt 0:00:10]} g5 {[%emt 0:00:22] A77: Modern Benoni: Classical: 9...Re8 10 Nd2: 10...a6 and 10...Nbd7.} 12. Nc4 {[%emt 0:00:17]} Nxe4 {[%emt 0:00:22]} 13. Nxe4 {[%emt 0:00:03][%mdl 64] Remove Defender} Rxe4 {[%emt 0:00:01] White has an edge.} 14. Nxd6 {[%emt 0:00:05]} Rd4 {[%emt 0:00:04]} 15. Qc2 {[%emt 0:00:07] aiming for Nf5.} Nb6 {[%emt 0:00:52]} 16. Nxc8 {[%emt 0:00:26]} Rxc8 {[%emt 0:00:02]} 17. Be3 {[%emt 0:00:06] [#]} Rxd5 $146 {[%emt 0:00:06]} ({Predecessor:} 17... Rb4 18. Rab1 Nxd5 19. Qf5 Nxe3 20. fxe3 Rc7 21. Bd3 Rh4 22. b3 g4 23. hxg4 Qd6 24. Rf4 Qe5 25. Re1 Qxf5 26. gxf5 Rxf4 27. exf4 Bd4+ {½-½ (27) Marikova,J (2148)-Kanovsky,D (2453) Stare Mesto 2015}) 18. Bf3 {[%emt 0:00:08]} Rd6 {[%emt 0:00:20]} 19. Bxb7 {[%emt 0:00:15]} Rc7 {[%emt 0:00:21]} 20. Be4 {[%emt 0:00:02] A strong pair of Bishops.} h6 {[%emt 0:00:09]} 21. Rad1 {[%emt 0:00:11]} Bd4 {[%emt 0:00:10]} 22. Bxd4 {[%emt 0:00:19]} cxd4 {[%emt 0:00:17]} 23. Qb3 {[%emt 0:00:09]} Qf6 {[%emt 0:00:27]} 24. Rfe1 {[%emt 0:00:12]} Kg7 {[%emt 0:00:05]} 25. Bb1 {[%emt 0:00:23]} Nd5 {[%emt 0:00:41]} 26. Qd3 {[%emt 0:00:17]} Nf4 {[%emt 0:00:02]} 27. Qh7+ {[%emt 0:00:02]} Kf8 {[%emt 0:00:01]} 28. Kh2 {[%emt 0:00:27]} Rd8 {[%emt 0:00:44]} 29. g3 {[%emt 0:00:24]} Ne6 {[%emt 0:00:07]} 30. Kg2 {[%emt 0:00:09]} Qg7 {[%emt 0:00:16]} (30... a5 $11) 31. Qf5 $16 {[%emt 0:00:02] And now Rxe6 would win.} Rc5 {[%emt 0:00:01] [#]} 32. Qf3 {[%emt 0:00:03] Hoping for Rxe6.} Kg8 {[%emt 0:00:05]} 33. Qb7 {[%emt 0:00:21]} a5 {[%emt 0:00:02]} 34. Qb6 {[%emt 0:00:03]} (34. Qf3 $14 {was preferrable.}) 34... Rcc8 $2 {[%emt 0:00:06] Black is now going downhill.} (34... Rcd5 $11 {and Black is okay.}) 35. Qxa5 $18 {[%emt 0:00:04]} ({Much less strong is} 35. Bf5 Rb8 36. Qxa5 Ra8 $16) 35... Qf6 {[%emt 0:00:02]} 36. Qf5 {[%emt 0:00:01]} Kg7 {[%emt 0:00:03] [#]} (36... Qxf5 $16 37. Bxf5 Rd6) 37. Qh7+ $1 {[%emt 0:00:07]} Kf8 {[%emt 0:00:00]} 38. Bf5 {[%emt 0:00:03]} (38. a3 $18) 38... Nc5 $2 {[%emt 0:00:05][%mdl 8192]} (38... Qg7 $16 39. Qxg7+ Kxg7) 39. Bxc8 {[%emt 0:00:04]} Rxc8 {[%emt 0:00:01]} 40. Qc2 {[%emt 0:00:15]} d3 {[%emt 0:00:02]} 41. Rxd3 {[%emt 0:00:09]} Qc6+ {[%emt 0:00:01]} 42. Rf3 {[%emt 0:00:02] Intending Qh7 and mate.} Kg8 {[%emt 0:00:04] Against Qh7+} 43. Qf5 {[%emt 0:00:02]} Rc7 {[%emt 0:00:01]} 44. Qf6 {[%emt 0:00:03]} Ne6 {[%emt 0:00:02] [#] Against Qd8+} 45. Rxe6 {[%emt 0:00:05]} fxe6 {[%emt 0:00:03]} 46. Qxh6 {[%emt 0:00:01][%mdl 4096] Endgame KQR-KQR} Rg7 {[%emt 0:00:03]} 47. Qf6 {[%emt 0:00:03]} Qd5 {[%emt 0:00:00]} 48. a4 {[%emt 0:00:02]} Kh7 {[%emt 0:00:02]} 49. b4 {[%emt 0:00:02][%cal Bb2b4,Bb4b5,Bb5b6][%mdl 32]} e5 {[%emt 0:00:02]} 50. Qf5+ {[%emt 0:00:01]} Kh6 {[%emt 0:00:02]} 51. b5 {[%emt 0:00:08]} Qa8 {[%emt 0:00:02]} 52. Qxe5 {[%emt 0:00:05]} Kh7 {[%emt 0:00:04]} 53. Qf5+ {[%emt 0:00:01]} Kh6 {[%emt 0:00:02]} 54. b6 {[%emt 0:00:03]} Qxa4 {[%emt 0:00:01]} 55. Qf6+ {[%emt 0:00:01]} Kh7 {[%emt 0:00:01]} 56. Qf5+ {[%emt 0:00:02]} Kh6 $1 {[%emt 0:00:01]} 57. Qe6+ {[%emt 0:00:01]} Kh7 {[%emt 0:00:05]} 58. Rf6 {[%emt 0:00:02][%csl Ge6][%cal Rf6h6]} Qa8+ {[%emt 0:00:01]} 59. Kh2 {[%emt 0:00:02] Weighted Error Value: White=0.21 (precise) /Black=0.44} 1-0

[Event "Superbet Blitz Poland 2022"]
[Site "Warsaw"]
[Date "2022.05.23"]
[Round "10.3"]
[White "Duda, Jan-Krzysztof"]
[Black "Anand, Viswanathan"]
[Result "1-0"]
[ECO "C43"]
[WhiteElo "2750"]
[BlackElo "2751"]
[Annotator "TA"]
[PlyCount "67"]
[EventDate "2022.05.22"]
[EventType "tourn"]
[EventCountry "POL"]
[SourceTitle "playchess.com"]
[Source "ChessBase"]
[SourceQuality "1"]
[TimeControl "300+2"]

{[%evp 12,67,0,-4,9,0,18,0,0,-5,-4,-39,9,7,26,11,9,8,11,13,19,-2,-6,-7,-6,-8,0,-1,0,0,0,-16,0,0,62,71,133,120,163,154,170,152,255,235,245,243,407,394,385,361,335,330,950,939,859,839,812,755]} 1. e4 {[%emt 0:00:01]} e5 {[%emt 0:00:01]} 2. Nf3 {[%emt 0:00:01]} Nf6 {[%emt 0:00:01][%cal Bg8f6,Bf6e4,Be4c5,Bc5e6][%mdl 32]} 3. d4 {[%emt 0:00:02]} Nxe4 {[%emt 0:00:02]} 4. Bd3 {[%emt 0:00:06]} d5 {[%emt 0:00:03]} 5. Nxe5 {[%emt 0:00:01]} Nd7 {[%emt 0:00:01]} 6. O-O {[%emt 0:00:03]} Nxe5 {[%emt 0:00:01]} 7. dxe5 {[%emt 0:00:02]} Nc5 {[%emt 0:00:03] C43: Petroff Defence: 3 d4.} 8. f4 {[%emt 0:00:01]} g6 {[%emt 0:00:05]} 9. Be2 {[%emt 0:00:02]} c6 {[%emt 0:00:19] [#] The position is equal.} 10. Nd2 $146 {[%emt 0:00:11][%cal Bb1d2,Bd2f3,Bf3d4][%mdl 32]} ({Predecessor:} 10. Be3 b6 11. c3 Bg7 12. Nd2 O-O 13. b4 Nb7 14. Nb3 Qc7 15. Rc1 Rd8 16. Qe1 {1-0 (35) Kosteniuk,A (2471)-Koneru,H (2586) Chess.com INT 2020}) 10... Be7 {[%emt 0:00:22]} 11. Nf3 {[%emt 0:00:05]} O-O {[%emt 0:00:03]} (11... Qb6 $1 $15 {is more appropriate.} 12. Qd4 Bf5) 12. Be3 $11 {[%emt 0:00:05]} Ne6 {[%emt 0:00:13]} 13. c3 {[%emt 0:00:13]} Bc5 {[%emt 0:00:08]} 14. Nd4 {[%emt 0:00:23]} f6 {[%emt 0:00:14]} 15. Kh1 {[%emt 0:00:02] [#] Hoping for Nxe6.} Bb6 {[%emt 0:00:06]} 16. Bd3 {[%emt 0:00:23]} fxe5 {[%emt 0:00:06]} 17. fxe5 {[%emt 0:00:01]} Rxf1+ {[%emt 0:00:06]} 18. Qxf1 {[%emt 0:00:02]} Bd7 {[%emt 0:00:02]} 19. Qf3 {[%emt 0:00:10]} Qh4 {[%emt 0:00:19]} 20. Nxe6 {[%emt 0:01:04]} (20. Qe2 {is interesting.} Rf8 21. g3 Qh3 22. Nxe6 Bxe6 23. Bxb6 axb6 24. Kg1) 20... Bxe6 {[%emt 0:00:01]} 21. Rf1 {[%emt 0:00:02]} Bxe3 {[%emt 0:00:42]} 22. Qxe3 {[%emt 0:00:01]} Rf8 {[%emt 0:00:11]} (22... b6 $11) 23. Qxa7 $14 {[%emt 0:00:28]} Rxf1+ {[%emt 0:00:04]} ({Better is} 23... Bc8) 24. Bxf1 {[%emt 0:00:01][%mdl 4096] [#] Endgame And now Qa8+ would win. KQB-KQB} Qe1 {[%emt 0:00:18]} 25. Qa8+ {[%emt 0:00:15]} Kg7 {[%emt 0:00:05][%cal Re1f1]} 26. Qxb7+ {[%emt 0:00:01]} Kh6 {[%emt 0:00:22]} (26... Bf7 $16 {was called for.} 27. Qa6 Qxe5 28. Qxc6 d4 29. cxd4 Qxd4) 27. Qa6 $18 {[%emt 0:00:02]} Bf5 {[%emt 0:00:12]} 28. Qe2 {[%emt 0:00:06]} Qa1 {[%emt 0:00:07]} (28... Qxe2 29. Bxe2 Kg5) 29. a3 {[%emt 0:00:37]} Kg7 {[%emt 0:00:04]} 30. Kg1 {[%emt 0:00:05] e6 is the strong threat.} Kf7 {[%emt 0:00:44]} 31. g4 {[%emt 0:00:10]} Be6 {[%emt 0:00:08]} (31... Bc8 32. Qf2+ Ke8) 32. Qf2+ {[%emt 0:00:02] White is clearly winning.} Ke8 {[%emt 0:00:01]} 33. Qf6 {[%emt 0:00:16]} Bxg4 {[%emt 0:00:14]} 34. e6 {[%emt 0:00:09] Weighted Error Value: White=0.05 (flawless) /Black=0.27 (precise)} 1-0

[Event "Superbet Blitz Poland 2022"]
[Site "Warsaw"]
[Date "2022.05.23"]
[Round "10.4"]
[White "Wojtaszek, Radoslaw"]
[Black "So, Wesley"]
[Result "1/2-1/2"]
[ECO "E05"]
[WhiteElo "2696"]
[BlackElo "2766"]
[Annotator "TA"]
[PlyCount "50"]
[EventDate "2022.05.22"]
[EventType "tourn"]
[EventCountry "POL"]
[SourceTitle "playchess.com"]
[Source "ChessBase"]
[SourceQuality "1"]
[TimeControl "300+2"]

{[%evp 21,50,18,16,23,23,5,4,8,2,2,7,3,14,10,8,3,7,4,5,6,9,0,0,0,0,0,0,0,0,0,0]} 1. d4 {[%emt 0:00:01]} Nf6 {[%emt 0:00:02]} 2. c4 {[%emt 0:00:01]} e6 {[%emt 0:00:01]} 3. Nf3 {[%emt 0:00:02]} d5 {[%emt 0:00:01]} 4. g3 {[%emt 0:00:01]} Be7 {[%emt 0:00:01]} 5. Bg2 {[%emt 0:00:01]} O-O {[%emt 0:00:01]} 6. O-O {[%emt 0:00:01]} dxc4 {[%emt 0:00:01]} 7. Qc2 {[%emt 0:00:02]} a6 {[%emt 0:00:01]} 8. a4 {[%emt 0:00:00]} Bd7 {[%emt 0:00:01]} 9. Qxc4 {[%emt 0:00:02]} Bc6 {[%emt 0:00:01]} 10. Bg5 {[%emt 0:00:02]} Nbd7 {[%emt 0:00:03]} 11. Nc3 {[%emt 0:00:02]} h6 {[%emt 0:00:01]} 12. Bxf6 {[%emt 0:00:03] E05: Open Catalan: 5 Nf3 Be7.} Nxf6 {[%emt 0:00:02]} 13. e3 {[%emt 0:00:02] 13.Rfd1 is the modern continuation.} Bd5 {[%emt 0:00:10] A strong pair of Bishops. The position is equal.} 14. Qe2 {[%emt 0:00:02]} Bxf3 {[%emt 0:00:02]} 15. Bxf3 {[%emt 0:00:04]} c6 {[%emt 0:00:01]} 16. Rfd1 {[%emt 0:00:04] [#]} Qc7 $146 {[%emt 0:00:11]} ({Predecessor:} 16... Qa5 17. Qc4 Rfd8 18. Kg2 Rac8 19. Rab1 Nd5 20. Qb3 Qb4 21. Qxb4 Bxb4 22. Na2 Be7 {½-½ (37) Kaiser,C-Smid,A freechess.de 2018}) 17. h4 {[%emt 0:00:05]} Rfd8 {[%emt 0:00:03]} 18. Rac1 {[%emt 0:00:05]} Rd7 {[%emt 0:00:09]} 19. Qc4 {[%emt 0:00:02]} a5 {[%emt 0:00:09]} 20. Kg2 {[%emt 0:00:08]} Rad8 {[%emt 0:00:02]} 21. Qb3 {[%emt 0:00:22]} Bb4 {[%emt 0:00:13]} 22. Na2 {[%emt 0:00:20]} Bf8 {[%emt 0:00:03]} 23. Nc3 {[%emt 0:00:05]} Bb4 {[%emt 0:00:01]} 24. Na2 {[%emt 0:00:18]} Bf8 {[%emt 0:00:02]} 25. Nc3 {[%emt 0:00:07]} Bb4 {[%emt 0:04:30] An even fight not without its subleties.  Weighted Error Value: White=0.03 (flawless) /Black=0.01 (flawless)} 1/2-1/2